bitfinex-derivatives/quotes_BTCF0:USTF0_20240829
["timestamp","ask_amount","ask_price","bid_price","bid_amount"]
[1724889951891,0.591661,59156.0,59154.0,0.3608]
[1724889952093,0.13236,59155.0,59154.0,0.3608]
[1724889952492,0.03110426,59158.0,59157.0,0.084499]
[1724889952699,0.00025359,59159.0,59157.0,0.084499]
[1724889952997,0.03084305,59159.0,59158.0,0.084498]
[1724889953202,0.00025359,59159.0,59158.0,0.084498]
[1724889954093,0.00025359,59159.0,59158.0,0.591618]
[1724889955190,0.00025359,59159.0,59158.0,1.191618]
[1724889955390,0.084467,59180.0,59158.0,1.10912]
[1724889955609,0.084461,59184.0,59179.0,0.3608]
[1724889956004,0.0614,59188.0,59179.0,0.3608]
[1724889956211,0.145855,59188.0,59179.0,0.445268]
[1724889956407,0.084455,59188.0,59179.0,0.445268]
[1724889956698,0.00016727,59189.0,59185.0,0.084459]
[1724889956905,0.02991244,59189.0,59185.0,0.3608]
[1724889957093,0.00016727,59189.0,59185.0,0.3608]
[1724889957288,0.00016727,59189.0,59184.0,0.3608]
[1724889958605,0.00016727,59189.0,59185.0,0.001]
[1724889959796,0.03084112,59189.0,59184.0,0.3628]
[1724889959997,0.00016727,59189.0,59184.0,0.002]
[1724889960198,0.00016727,59189.0,59185.0,0.3608]
[1724889960504,0.084459,59185.0,59184.0,0.002]
[1724889961509,0.084459,59185.0,59184.0,0.001]
[1724889961696,0.168916,59186.0,59185.0,0.001]
[1724889961896,0.50688,59188.0,59172.0,0.3608]
[1724889962093,0.084479,59171.0,59159.0,0.3608]
[1724889962310,0.42328,59173.0,59164.0,0.36168]
[1724889962505,0.084488,59165.0,59159.0,0.3608]
[1724889962709,0.084488,59165.0,59156.0,0.3287]
[1724889963008,0.084493,59162.0,59155.0,0.12515359]
[1724889963199,0.084496,59159.0,59155.0,0.06305359]
[1724889963800,0.084498,59158.0,59155.0,0.00025359]
[1724889963998,0.3608,59163.0,59155.0,0.00025359]
[1724889964199,0.00025359,59166.0,59159.0,0.3608]
[1724889964399,0.084489,59164.0,59159.0,0.3608]
[1724889965407,0.00025359,59166.0,59159.0,0.3608]
[1724889965804,0.03059234,59166.0,59165.0,0.3608]
[1724889966001,0.00025359,59166.0,59165.0,0.3608]
[1724889966899,0.0303762,59166.0,59165.0,0.3608]
[1724889967112,0.0313762,59166.0,59165.0,0.3618]
[1724889967313,0.0313762,59166.0,59165.0,0.3628]
[1724889967509,0.1158622,59166.0,59165.0,0.3628]
[1724889967815,0.1158622,59166.0,59165.0,0.002]
[1724889968307,0.00125359,59166.0,59165.0,0.002]
[1724889968498,0.00125359,59166.0,59165.0,0.086488]
[1724889968803,0.00125359,59166.0,59165.0,0.002]
[1724889969305,0.00025359,59166.0,59165.0,0.001]
[1724889969610,0.00125359,59166.0,59165.0,0.002]
[1724889969804,0.00125359,59166.0,59165.0,0.001]
[1724889970003,0.00125359,59166.0,59165.0,0.002]
[1724889970004,0.08573959,59166.0,59165.0,0.002]
[1724889971105,0.084488,59165.0,59162.0,0.32895]
[1724889972202,0.00125359,59166.0,59162.0,0.32895]
[1724889972708,0.001,59165.0,59162.0,0.32995]
[1724889973409,0.00225359,59166.0,59162.0,0.414441]
[1724889973612,0.00225359,59166.0,59162.0,0.415441]
[1724889974316,0.00125359,59166.0,59162.0,0.414441]
[1724889974517,0.002,59165.0,59162.0,0.415441]
[1724889975107,0.004,59165.0,59162.0,0.415441]
[1724889976015,0.00125359,59166.0,59162.0,0.414441]
[1724889976215,0.002,59165.0,59162.0,0.415441]
[1724889976906,0.003,59165.0,59162.0,0.33095]
[1724889977105,0.087489,59165.0,59162.0,0.33095]
[1724889977306,0.003,59165.0,59162.0,0.33095]
[1724889978315,0.001,59165.0,59162.0,0.32995]
[1724889978609,0.002,59165.0,59162.0,0.33095]
[1724889978809,0.002,59165.0,59164.0,0.3608]
[1724889979114,0.001,59165.0,59164.0,0.3608]
[1724889979318,0.002,59165.0,59164.0,0.3608]
[1724889979508,0.002,59165.0,59162.0,0.05268919]
[1724889979708,0.002,59165.0,59162.0,0.002]
[1724889980005,0.084495,59160.0,59158.0,0.05068919]
[1724889980206,0.084496,59159.0,59158.0,0.05068919]
[1724889980409,0.3608,59164.0,59156.0,0.05068919]
[1724889980613,0.084501,59156.0,59155.0,0.36105359]
[1724889981503,0.084501,59156.0,59155.0,0.41174278]
[1724889982104,0.084501,59156.0,59155.0,0.41153214]
[1724889982614,0.001,59156.0,59155.0,0.36205359]
[1724889983121,0.002,59156.0,59155.0,0.41354841]
[1724889983411,0.002,59156.0,59155.0,0.36305359]
[1724889985515,0.03260453,59156.0,59155.0,0.36205359]
[1724889985710,0.002,59156.0,59155.0,0.36305359]
[1724889985915,0.002,59156.0,59155.0,0.36205359]
[1724889985916,0.001,59156.0,59155.0,0.36205359]
[1724889986313,0.002,59156.0,59155.0,0.36305359]
[1724889987720,0.086501,59156.0,59155.0,0.36305359]
[1724889991123,0.169008,59154.0,59153.0,0.05049482]
[1724889991422,0.169008,59154.0,59133.0,0.3608]
[1724889991423,0.084516,59145.0,59144.0,0.00064216]
[1724889991625,0.084525,59139.0,59133.0,0.3608]
[1724889991920,0.084529,59137.0,59133.0,0.3608]
[1724889992620,0.084538,59130.0,59129.0,0.00025359]
[1724889993141,0.21052668,59137.0,59129.0,0.00025359]
[1724889993420,0.084525,59139.0,59129.0,0.00025359]
[1724889993421,0.374532,59134.0,59133.0,0.001]
[1724889993620,0.374532,59134.0,59133.0,0.003]
[1724889993821,0.881852,59134.0,59133.0,0.003]
[1724889994130,0.881852,59134.0,59133.0,0.002]
[1724889994322,0.084538,59130.0,59129.0,0.00325359]
[1724889994821,0.218818,59130.0,59129.0,0.00325359]
[1724889995819,0.218818,59130.0,59129.0,0.00025359]
[1724889996124,0.13428,59130.0,59129.0,0.00025359]
[1724889996323,0.002,59134.0,59129.0,0.00025359]
[1724889996527,0.13428,59134.0,59133.0,0.3608]
[1724889996828,0.0307745,59139.0,59133.0,0.3608]
[1724889997025,0.13428,59137.0,59133.0,0.3608]
[1724889997826,0.03082363,59140.0,59133.0,0.3608]
[1724889998018,0.13453359,59141.0,59133.0,0.3608]
[1724889998218,0.084524,59140.0,59130.0,0.0598]
[1724889998418,0.084528,59137.0,59130.0,0.0598]
[1724889999420,0.086528,59137.0,59130.0,0.0598]
[1724889999726,0.088528,59137.0,59130.0,0.0598]
[1724889999926,0.086528,59137.0,59130.0,0.0618]
[1724890000428,0.084528,59137.0,59130.0,0.0618]
[1724890003623,0.084529,59136.0,59130.0,0.0618]
[1724890004730,0.084529,59136.0,59134.0,0.3608]
[1724890006127,0.003,59136.0,59134.0,0.3608]
[1724890006831,0.005,59136.0,59134.0,0.3608]
[1724890008430,0.005,59136.0,59131.0,0.084536]
[1724890008635,0.005,59136.0,59134.0,0.3608]
[1724890009528,0.004,59136.0,59134.0,0.3608]
[1724890009729,0.084531,59135.0,59134.0,0.3608]
[1724890011140,0.084536,59132.0,59129.0,0.06315359]
[1724890012433,0.084538,59130.0,59129.0,0.06615359]
[1724890013036,0.084538,59130.0,59129.0,0.06715359]
[1724890014833,0.084538,59130.0,59129.0,0.06415359]
[1724890015035,0.084538,59130.0,59129.0,0.06715359]
[1724890018139,0.084538,59130.0,59129.0,0.00425359]
[1724890018346,0.084555,59118.0,59117.0,0.05058676]
[1724890018538,0.084561,59114.0,59113.0,0.0576]
[1724890019136,0.09284107,59114.0,59113.0,0.0576]
[1724890019538,0.14532,59118.0,59113.0,0.0576]
[1724890019738,0.231875,59118.0,59117.0,0.001]
[1724890020848,0.002,59114.0,59113.0,0.4194]
[1724890021041,0.013,59114.0,59113.0,0.4204]
[1724890021235,0.013,59114.0,59113.0,0.0596]
[1724890021645,0.002,59114.0,59113.0,0.0586]
[1724890022439,0.03013829,59114.0,59113.0,0.4184]
[1724890022641,0.084558,59116.0,59113.0,0.4184]
[1724890022844,0.084558,59116.0,59113.0,0.4194]
[1724890022845,0.012,59114.0,59113.0,0.4194]
[1724890023762,0.003,59118.0,59113.0,0.4194]
[1724890024063,0.00025359,59119.0,59118.0,0.084555]
[1724890024460,0.03142787,59119.0,59118.0,0.084555]
[1724890024771,0.00025359,59119.0,59118.0,0.084555]
[1724890025561,0.01425359,59119.0,59118.0,0.085555]
[1724890026861,0.01425359,59119.0,59118.0,0.086555]
[1724890028162,0.01425359,59119.0,59118.0,0.593995]
[1724890028365,0.13448,59128.0,59127.0,0.084542]
[1724890028663,0.1643456,59128.0,59127.0,0.445342]
[1724890029564,0.1643456,59128.0,59127.0,0.446342]
[1724890030664,0.1643456,59128.0,59127.0,0.447342]
[1724890031462,0.0298656,59128.0,59127.0,0.447342]
[1724890031660,0.13448,59129.0,59127.0,0.447342]
[1724890031858,0.13448,59129.0,59127.0,0.002]
[1724890032754,0.13448,59129.0,59127.0,0.001]
[1724890032958,0.13448,59129.0,59127.0,0.002]
[1724890035068,0.03115551,59131.0,59127.0,0.002]
[1724890035269,0.13448,59128.0,59127.0,0.002]
[1724890036168,0.13448,59128.0,59127.0,0.001]
[1724890036367,0.13448,59128.0,59127.0,0.002]
[1724890039669,0.49528,59128.0,59127.0,0.001]
[1724890039869,0.49528,59128.0,59127.0,0.002]
[1724890040470,0.49528,59128.0,59127.0,0.001]
[1724890040673,1.60264,59128.0,59127.0,0.002]
[1724890040871,1.687181,59128.0,59127.0,0.002]
[1724890041873,1.687181,59128.0,59114.0,0.084559]
[1724890041874,0.084552,59120.0,59114.0,0.084559]
[1724890042172,0.3608,59118.0,59114.0,0.084559]
[1724890043168,0.3608,59118.0,59114.0,0.085559]
[1724890043770,0.00838351,59117.0,59114.0,0.001]
[1724890043970,0.00838351,59117.0,59114.0,0.002]
[1724890045173,0.00838351,59117.0,59114.0,0.08656]
[1724890045559,0.0615,59119.0,59114.0,0.08656]
[1724890045764,0.0615,59119.0,59114.0,0.08556]
[1724890046077,0.002,59117.0,59114.0,0.08656]
[1724890046376,0.13448,59116.0,59114.0,0.08656]
[1724890046571,0.13448,59116.0,59115.0,0.084559]
[1724890048264,0.13448,59116.0,59115.0,0.085559]
[1724890048265,0.13648,59116.0,59115.0,0.085559]
[1724890048774,0.13648,59116.0,59115.0,0.086559]
[1724890049677,0.16702791,59116.0,59115.0,0.086559]
[1724890050071,0.03254791,59116.0,59115.0,0.086559]
[1724890050274,0.16702791,59116.0,59115.0,0.086559]
[1724890056976,0.45702791,59116.0,59115.0,0.002]
[1724890057183,0.54158591,59116.0,59110.0,0.08481959]
[1724890057383,0.3608,59113.0,59110.0,0.08481959]
[1724890058185,0.3608,59113.0,59110.0,0.00025359]
[1724890058577,0.13404,59112.0,59111.0,0.084565]
[1724890060290,0.03254791,59116.0,59110.0,0.00125359]
[1724890060480,0.13404,59115.0,59114.0,0.08456]
[1724890060778,0.16458791,59116.0,59114.0,0.08456]
[1724890060980,0.13404,59116.0,59114.0,0.08456]
[1724890061486,0.13404,59117.0,59114.0,0.08456]
[1724890061682,0.003,59115.0,59114.0,0.08556]
[1724890062482,0.003,59115.0,59114.0,0.08656]
[1724890063084,0.14233876,59117.0,59114.0,0.08556]
[1724890063284,0.002,59116.0,59114.0,0.08656]
[1724890063982,0.002,59115.0,59114.0,0.08656]
[1724890064177,0.002,59115.0,59114.0,0.002]
[1724890064886,0.002,59115.0,59114.0,0.001]
[1724890065086,0.002,59115.0,59114.0,0.002]
[1724890065490,0.002,59115.0,59114.0,0.001]
[1724890065675,0.002,59115.0,59114.0,0.002]
[1724890066696,0.3628,59116.0,59114.0,0.002]
[1724890066885,0.002,59116.0,59114.0,0.002]
[1724890067281,0.03303751,59116.0,59114.0,0.002]
[1724890067482,0.03103751,59116.0,59114.0,0.001]
[1724890067791,0.002,59115.0,59114.0,0.002]
[1724890068378,0.002,59116.0,59114.0,0.002]
[1724890069195,0.002,59116.0,59114.0,0.001]
[1724890069386,0.002,59116.0,59114.0,0.002]
[1724890069992,0.90973255,59117.0,59114.0,0.002]
[1724890069993,0.002,59115.0,59114.0,0.002]
[1724890071180,0.002,59115.0,59114.0,0.001]
[1724890071390,0.3608,59115.0,59114.0,0.002]
[1724890071584,0.13404,59115.0,59114.0,0.002]
[1724890071986,0.002,59116.0,59114.0,0.002]
[1724890072185,0.002,59116.0,59114.0,0.001]
[1724890072186,0.218599,59115.0,59114.0,0.001]
[1724890072386,0.13404,59115.0,59114.0,0.002]
[1724890072992,0.13604,59115.0,59114.0,0.002]
[1724890076194,0.220599,59115.0,59114.0,0.002]
[1724890082897,0.220599,59115.0,59110.0,0.00025359]
[1724890082898,0.084564,59112.0,59110.0,0.00025359]
[1724890083098,0.6508,59111.0,59110.0,0.00025359]
[1724890083493,0.084564,59112.0,59110.0,0.00025359]
[1724890083691,0.002,59115.0,59110.0,0.00025359]
[1724890083892,0.13404,59114.0,59110.0,0.00025359]
[1724890084091,0.002,59115.0,59113.0,0.3608]
[1724890084296,0.00025359,59121.0,59114.0,0.0544]
[1724890084600,0.00025359,59121.0,59120.0,0.445352]
[1724890084792,0.02971115,59121.0,59120.0,1.045352]
[1724890084996,0.30328,59132.0,59120.0,1.46824]
[1724890085200,0.33432282,59132.0,59129.0,0.3608]
[1724890085399,0.03104282,59132.0,59131.0,0.084536]
[1724890085587,0.084521,59143.0,59132.0,0.084535]
[1724890085787,0.13404,59142.0,59133.0,0.0561]
[1724890086291,0.13404,59142.0,59138.0,0.3608]
[1724890086990,0.13404,59142.0,59134.0,0.084532]
[1724890087286,0.13404,59142.0,59136.0,0.084528]
[1724890087486,0.00325359,59143.0,59134.0,0.3608]
[1724890087685,0.13404,59142.0,59139.0,0.084524]
[1724890088491,0.13504,59142.0,59139.0,0.084524]
[1724890089197,0.13404,59142.0,59139.0,0.085524]
[1724890089393,0.13404,59142.0,59139.0,0.086524]
[1724890091197,0.13404,59142.0,59140.0,0.084523]
[1724890092397,0.13404,59142.0,59140.0,0.085523]
[1724890092398,0.13504,59142.0,59140.0,0.085523]
[1724890092703,0.13504,59142.0,59140.0,0.086523]
[1724890095090,0.13504,59142.0,59141.0,0.084522]
[1724890096096,0.001,59142.0,59141.0,0.084522]
[1724890096292,0.00025359,59143.0,59142.0,0.169042]
[1724890096698,0.00025359,59143.0,59142.0,0.222842]
[1724890097005,0.00025359,59143.0,59142.0,0.730082]
[1724890098008,0.00125359,59143.0,59142.0,0.731082]
[1724890098503,0.00125359,59143.0,59142.0,0.732082]
[1724890099796,0.00125359,59143.0,59142.0,1.092882]
[1724890104410,0.00025359,59143.0,59142.0,1.091882]
[1724890104604,0.00125359,59143.0,59142.0,1.092882]
[1724890106306,0.00125359,59143.0,59142.0,0.585642]
[1724890108404,0.00125359,59143.0,59142.0,0.584642]
[1724890108714,0.00125359,59143.0,59142.0,0.585642]
[1724890109408,0.00125359,59143.0,59142.0,1.692882]
[1724890110309,0.00125359,59143.0,59142.0,1.777403]
[1724890113714,0.03217521,59143.0,59142.0,1.177403]
[1724890114022,0.00125359,59143.0,59142.0,1.177403]
[1724890115013,0.00125359,59143.0,59142.0,1.777403]
[1724890115602,0.00125359,59143.0,59142.0,1.177403]
[1724890115808,0.00125359,59143.0,59142.0,1.777403]
[1724890117317,0.00125359,59143.0,59142.0,1.82798976]
[1724890117914,5.9e-07,59143.0,59142.0,1.91251076]
[1724890118122,0.13344,59168.0,59160.0,0.084494]
[1724890118614,0.08448,59171.0,59166.0,0.3608]
[1724890118810,0.247574,59175.0,59166.0,0.7216]
[1724890119010,0.247574,59175.0,59174.0,0.084475]
[1724890120412,0.2774139,59175.0,59174.0,0.084475]
[1724890120817,0.1929399,59175.0,59174.0,0.084475]
[1724890121320,0.1929399,59175.0,59174.0,0.086475]
[1724890124813,0.0298399,59175.0,59174.0,0.086475]
[1724890125015,0.00025359,59176.0,59175.0,0.084474]
[1724890125813,0.00025359,59176.0,59174.0,0.002]
[1724890125814,0.03054983,59176.0,59174.0,0.002]
[1724890126019,0.05395359,59176.0,59174.0,0.002]
[1724890127021,0.05395359,59176.0,59174.0,0.001]
[1724890127219,0.05395359,59176.0,59175.0,0.001]
[1724890128124,0.05395359,59176.0,59174.0,0.002]
[1724890128813,0.05395359,59176.0,59174.0,0.001]
[1724890129011,0.05395359,59176.0,59175.0,0.001]
[1724890129222,0.00025359,59176.0,59175.0,0.001]
[1724890129421,0.00025359,59176.0,59175.0,0.002]
[1724890130121,0.00025359,59176.0,59175.0,0.086474]
[1724890130324,0.00025359,59176.0,59175.0,0.085474]
[1724890131027,0.00025359,59176.0,59175.0,0.086474]
[1724890134631,0.36105359,59176.0,59175.0,0.002]
[1724890135128,0.00025359,59176.0,59175.0,0.002]
[1724890135329,0.86801359,59176.0,59175.0,0.002]
[1724890135629,1.46801359,59176.0,59164.0,0.3287]
[1724890135817,0.29,59173.0,59164.0,0.3287]
[1724890136024,0.36105359,59176.0,59164.0,0.413188]
[1724890136025,0.6508,59167.0,59164.0,0.413188]
[1724890136319,0.7842,59167.0,59164.0,0.413188]
[1724890136520,0.1708,59166.0,59164.0,0.413188]
[1724890136725,0.1708,59166.0,59164.0,0.084488]
[1724890137435,0.1708,59166.0,59165.0,0.00125359]
[1724890138132,0.1718,59166.0,59165.0,0.00225359]
[1724890138831,0.1718,59166.0,59165.0,0.00125359]
[1724890139037,0.1728,59166.0,59165.0,0.00225359]
[1724890139329,0.1158,59166.0,59165.0,0.00225359]
[1724890140434,0.1138,59166.0,59165.0,0.00125359]
[1724890140628,0.1148,59166.0,59165.0,0.00225359]
[1724890140929,0.199286,59166.0,59165.0,0.00225359]
[1724890141135,1.22184,59166.0,59155.0,0.084501]
[1724890141438,0.29,59160.0,59155.0,0.084501]
[1724890141821,0.29,59160.0,59152.0,0.084506]
[1724890141822,0.3608,59156.0,59152.0,0.084506]
[1724890142127,0.3608,59156.0,59148.0,0.00025359]
[1724890142333,0.3608,59156.0,59155.0,0.084502]
[1724890142535,0.3608,59156.0,59148.0,0.00025359]
[1724890142724,0.3608,59154.0,59148.0,0.00025359]
[1724890142929,0.084497,59159.0,59148.0,0.00025359]
[1724890143130,0.3608,59154.0,59148.0,0.00025359]
[1724890143339,0.3608,59154.0,59150.0,0.084509]
[1724890144335,0.3628,59154.0,59150.0,0.084509]
[1724890145034,0.86796,59154.0,59150.0,0.001]
[1724890145336,0.084508,59151.0,59150.0,0.002]
[1724890145742,0.64088,59151.0,59150.0,0.002]
[1724890146434,0.725388,59151.0,59150.0,0.002]
[1724890146826,0.725388,59151.0,59148.0,0.00025359]
[1724890147031,0.220188,59151.0,59150.0,0.002]
[1724890147432,0.727388,59151.0,59150.0,0.002]
[1724890147939,0.727388,59151.0,59150.0,0.001]
[1724890148230,0.727388,59151.0,59148.0,0.00225359]
[1724890148436,0.3608,59149.0,59148.0,0.00125359]
[1724890148638,0.00842617,59149.0,59148.0,0.00125359]
[1724890148841,0.3608,59149.0,59148.0,0.00125359]
[1724890149137,0.36941228,59149.0,59148.0,0.00125359]
[1724890149936,0.50309228,59149.0,59148.0,0.00025359]
[1724890150241,0.50309228,59149.0,59148.0,0.00125359]
[1724890150733,0.50509228,59149.0,59148.0,0.00225359]
[1724890151538,0.53630931,59149.0,59148.0,0.00225359]
[1724890155541,0.37212783,59149.0,59148.0,0.00225359]
[1724890155746,0.74663883,59149.0,59148.0,0.00225359]
[1724890160246,0.55002031,59149.0,59148.0,0.00225359]
[1724890160542,0.91082031,59149.0,59148.0,0.00225359]
[1724890161937,0.77714031,59149.0,59148.0,0.00225359]
[1724890162138,0.82634931,59149.0,59148.0,0.00225359]
[1724890162443,0.53634931,59149.0,59148.0,0.00225359]
[1724890163848,0.17554931,59149.0,59148.0,0.00225359]
[1724890164738,0.04182931,59149.0,59148.0,0.00225359]
[1724890164943,0.17554931,59149.0,59148.0,0.00225359]
[1724890165441,0.26006031,59149.0,59148.0,0.00225359]
[1724890167347,0.76726031,59149.0,59148.0,0.00225359]
[1724890167543,0.084514,59147.0,59140.0,0.445323]
[1724890169344,0.087514,59147.0,59140.0,0.446323]
[1724890170046,0.087514,59147.0,59140.0,0.447323]
[1724890170440,0.003,59147.0,59140.0,0.447323]
[1724890170642,0.003,59147.0,59140.0,0.3628]
[1724890170949,0.3608,59143.0,59138.0,0.05885359]
[1724890171256,0.3608,59143.0,59133.0,0.3608]
[1724890171257,0.29,59139.0,59133.0,0.3608]
[1724890171550,0.29,59139.0,59130.0,0.1126]
[1724890171551,0.084536,59131.0,59130.0,0.1126]
[1724890171749,0.508256,59131.0,59121.0,0.084549]
[1724890171952,0.084539,59129.0,59122.0,0.084549]
[1724890172163,0.084539,59129.0,59121.0,0.1126]
[1724890173448,0.087539,59129.0,59122.0,0.001]
[1724890173955,0.087539,59129.0,59121.0,0.1136]
[1724890174357,0.13224,59128.0,59122.0,0.059]
[1724890174656,0.011,59129.0,59122.0,0.504349]
[1724890174949,0.012,59129.0,59128.0,0.3608]
[1724890175541,0.022,59129.0,59128.0,0.3608]
[1724890175739,0.022,59129.0,59128.0,0.952701]
[1724890176153,0.009,59129.0,59128.0,0.952701]
[1724890176451,0.013,59129.0,59128.0,0.953701]
[1724890176646,0.013,59129.0,59128.0,0.446341]
[1724890177059,0.021,59129.0,59128.0,0.447341]
[1724890177545,0.027,59129.0,59128.0,0.447341]
[1724890178351,0.014,59129.0,59128.0,0.446341]
[1724890178659,0.027,59129.0,59128.0,0.447341]
[1724890183654,0.027,59129.0,59128.0,1.554701]
[1724890185547,0.027,59129.0,59128.0,0.954701]
[1724890187557,0.027,59129.0,59128.0,0.447341]
[1724890190657,0.02474641,59129.0,59128.0,1.844701]
[1724890191261,0.02474641,59129.0,59128.0,1.554701]
[1724890193156,0.02474641,59129.0,59128.0,1.639242]
[1724890193459,0.02474641,59129.0,59128.0,1.929242]
[1724890194251,0.02474641,59129.0,59128.0,2.013783]
[1724890195956,0.00025359,59131.0,59130.0,0.169076]
[1724890196155,0.00025359,59131.0,59130.0,0.529876]
[1724890196350,0.00025359,59131.0,59130.0,1.637236]
[1724890197562,0.00625359,59131.0,59130.0,1.638236]
[1724890197763,0.00725359,59131.0,59130.0,1.639236]
[1724890199361,0.00725359,59131.0,59130.0,1.723774]
[1724890201258,5.9e-07,59131.0,59130.0,1.723774]
[1724890201659,5.9e-07,59131.0,59130.0,1.123774]
[1724890201866,5.9e-07,59131.0,59130.0,1.639236]
[1724890202259,5.9e-07,59131.0,59130.0,0.447338]
[1724890204164,0.084532,59134.0,59133.0,0.084533]
[1724890204576,0.084532,59134.0,59130.0,0.3628]
[1724890204869,0.1108,59133.0,59130.0,0.3618]
[1724890205059,0.1108,59133.0,59132.0,0.084535]
[1724890205471,0.0554,59133.0,59132.0,0.084535]
[1724890206578,0.0554,59133.0,59132.0,0.085535]
[1724890207068,0.0554,59133.0,59132.0,0.001]
[1724890207372,0.0554,59133.0,59132.0,0.002]
[1724890208668,0.139934,59133.0,59132.0,0.002]
[1724890208870,0.139934,59133.0,59132.0,0.001]
[1724890209072,0.139934,59133.0,59132.0,0.002]
[1724890209970,0.647254,59133.0,59132.0,0.002]
[1724890210267,1.247254,59133.0,59132.0,0.002]
[1724890210466,0.647254,59133.0,59132.0,0.002]
[1724890210671,0.779174,59133.0,59132.0,0.002]
[1724890214174,0.271854,59133.0,59132.0,0.002]
[1724890215872,1.29464,59133.0,59120.0,0.36105359]
[1724890216076,0.08455,59122.0,59120.0,0.36105359]
[1724890216284,0.1166,59121.0,59120.0,0.36105359]
[1724890217169,0.1166,59121.0,59120.0,0.36205359]
[1724890217579,0.1166,59121.0,59120.0,0.44660559]
[1724890217580,0.0588,59121.0,59120.0,0.44660559]
[1724890217770,0.0588,59121.0,59120.0,0.44560559]
[1724890217771,0.13192,59121.0,59120.0,0.44560559]
[1724890218075,0.13192,59121.0,59120.0,0.44660559]
[1724890218466,0.13192,59121.0,59120.0,0.44760559]
[1724890219767,0.084541,59128.0,59123.0,0.084547]
[1724890219969,0.13192,59127.0,59123.0,0.084547]
[1724890220364,0.13192,59127.0,59124.0,0.084546]
[1724890220577,0.201136,59131.0,59120.0,0.36305359]
[1724890220578,0.13192,59126.0,59120.0,0.36305359]
[1724890220770,0.13192,59126.0,59125.0,0.084545]
[1724890222068,0.13192,59126.0,59125.0,0.445345]
[1724890222468,0.002,59128.0,59127.0,0.084542]
[1724890222678,0.13392,59128.0,59127.0,0.084542]
[1724890223473,0.13192,59128.0,59127.0,0.084542]
[1724890223873,0.02991264,59131.0,59130.0,0.084538]
[1724890224180,0.13192,59131.0,59130.0,0.445338]
[1724890225074,0.13292,59131.0,59130.0,0.446338]
[1724890225474,0.13292,59131.0,59130.0,0.447338]
[1724890228284,0.001,59131.0,59130.0,0.447338]
[1724890229873,0.03056964,59136.0,59135.0,0.084531]
[1724890230075,0.03056964,59136.0,59135.0,0.445331]
[1724890231484,0.03156964,59136.0,59135.0,0.446331]
[1724890231790,0.03156964,59136.0,59135.0,0.447331]
[1724890232287,0.03156964,59136.0,59135.0,0.446331]
[1724890232590,0.03156964,59136.0,59135.0,0.447331]
[1724890234582,0.04417886,59142.0,59135.0,0.447331]
[1724890235283,0.04417886,59142.0,59136.0,0.3608]
[1724890235488,0.04417886,59142.0,59135.0,0.086531]
[1724890235689,0.04417886,59142.0,59136.0,0.3608]
[1724890235890,0.07406089,59142.0,59136.0,0.3608]
[1724890237000,0.07406089,59142.0,59136.0,0.445329]
[1724890237194,0.07406089,59142.0,59136.0,0.3608]
[1724890237993,0.07406089,59142.0,59136.0,0.3618]
[1724890238492,0.07406089,59142.0,59136.0,0.3628]
[1724890239195,0.07406089,59142.0,59139.0,0.084524]
[1724890239389,0.07406089,59142.0,59140.0,0.0584]
[1724890240290,0.07406089,59142.0,59141.0,0.3608]
[1724890240598,0.07406089,59142.0,59141.0,0.445322]
[1724890240992,0.07406089,59142.0,59141.0,0.501022]
[1724890241492,0.02988203,59142.0,59141.0,0.501022]
[1724890241700,0.00025359,59144.0,59143.0,0.084519]
[1724890242499,0.03013391,59144.0,59143.0,0.084519]
[1724890243000,0.03013391,59144.0,59143.0,0.085519]
[1724890244198,0.03013391,59144.0,59143.0,0.086519]
[1724890252494,0.03013391,59144.0,59143.0,0.171038]
[1724890253201,0.429695,59161.0,59160.0,0.084492]
[1724890253202,0.084494,59161.0,59160.0,0.084492]
[1724890253395,0.00132001,59162.0,59161.0,0.084494]
[1724890253591,0.25369,59164.0,59160.0,0.3608]
[1724890253794,0.19924093,59164.0,59163.0,0.084491]
[1724890254695,0.19924093,59164.0,59161.0,0.085493]
[1724890255094,0.19924093,59164.0,59161.0,0.084493]
[1724890255295,0.19924093,59164.0,59163.0,0.001]
[1724890255595,0.19924093,59164.0,59161.0,0.084493]
[1724890255795,0.19924093,59164.0,59161.0,0.085493]
[1724890255997,0.19924093,59164.0,59161.0,0.001]
[1724890256197,0.1168,59163.0,59161.0,0.001]
[1724890257196,0.1168,59163.0,59158.0,0.00025359]
[1724890257402,0.1168,59163.0,59161.0,0.002]
[1724890257601,0.201291,59163.0,59161.0,0.002]
[1724890257803,0.19409083,59164.0,59161.0,0.002]
[1724890258200,0.084492,59163.0,59161.0,0.002]
[1724890258402,0.084492,59163.0,59161.0,0.001]
[1724890259202,0.084492,59162.0,59161.0,0.001]
[1724890259709,0.084492,59162.0,59161.0,0.002]
[1724890262900,0.084492,59162.0,59161.0,0.001]
[1724890263102,0.084492,59162.0,59161.0,0.002]
[1724890264302,0.19409083,59164.0,59163.0,0.084491]
[1724890265700,0.19409083,59164.0,59163.0,0.085491]
[1724890266205,0.19409083,59164.0,59163.0,0.084491]
[1724890266413,0.19409083,59164.0,59163.0,0.086491]
[1724890267707,0.03004093,59164.0,59163.0,0.086491]
[1724890267913,0.49420001,59168.0,59167.0,0.084485]
[1724890268112,0.49288,59168.0,59167.0,0.084485]
[1724890268314,0.0559,59172.0,59168.0,0.084484]
[1724890268615,0.13208,59173.0,59168.0,0.084484]
[1724890269416,0.03025627,59169.0,59168.0,0.084484]
[1724890269709,0.03025627,59169.0,59168.0,0.085484]
[1724890269914,0.03025627,59169.0,59168.0,0.086484]
[1724890273014,0.03025627,59169.0,59168.0,0.170968]